fUST/lending_fUST_20250808
["ID","MTS","AMOUNT","RATE_DAILY","PERIOD"]
[377957101,1754627443062,-460.0,0.00022465,2]
[377957102,1754627443071,-460.0,0.00022465,2]
[377957103,1754627443080,-460.0,0.00022465,2]
[377957104,1754627443089,-1511.4,0.00022465,2]
[377957105,1754627443098,-2390.55,0.00022465,2]
[377957106,1754627443107,-460.0,0.00022465,2]
[377957107,1754627443117,-460.0,0.00022465,2]
[377957109,1754627443126,-177.10902562,0.00022465,2]
[377957111,1754627443135,-226.73223924,0.00022465,2]
[377957112,1754627443144,-460.0,0.00022465,2]
[377957113,1754627443152,-460.0,0.00022465,2]
[377957114,1754627443161,-460.0,0.00022465,2]
[377957115,1754627443171,-460.0,0.00022465,2]
[377957116,1754627443180,-1277.7,0.00022465,2]
[377957117,1754627443189,-460.0,0.00022465,2]
[377957118,1754627443198,-460.0,0.00022465,2]
[377957119,1754627443207,-460.0,0.00022465,2]
[377957120,1754627443216,-460.0,0.00022465,2]
[377957121,1754627443225,-460.0,0.00022465,2]
[377957122,1754627443234,-460.0,0.00022465,2]
[377957123,1754627443243,-460.0,0.00022465,2]
[377957124,1754627443252,-460.0,0.00022465,2]
[377957125,1754627443261,-471.63,0.00022465,2]
[377957126,1754627443271,-556.13,0.00022465,2]
[377957127,1754627443281,-460.0,0.00022465,2]
[377957128,1754627443290,-949.33,0.00022465,2]
[377957129,1754627443299,-460.0,0.00022465,2]
[377957130,1754627443308,-521.94,0.00022465,2]
[377957131,1754627443318,-460.0,0.00022465,2]
[377957132,1754627443327,-886.53,0.00022465,2]
[377957133,1754627443336,-2431.97,0.00022465,2]
[377957134,1754627443346,-1195.68,0.00022465,2]
[377957135,1754627443355,-460.0,0.00022465,2]
[377957136,1754627443365,-460.0,0.00022465,2]
[377957137,1754627443374,-502.51,0.00022465,2]
[377957138,1754627443386,-1565.58,0.00022465,2]
[377957139,1754627443395,-460.0,0.00022465,2]
[377957140,1754627443404,-460.0,0.00022465,2]
[377957141,1754627443413,-460.0,0.00022465,2]
[377957142,1754627443422,-460.0,0.00022465,2]
[377957143,1754627443432,-460.0,0.00022465,2]
[377957144,1754627443441,-460.0,0.00022465,2]
[377957145,1754627443450,-1827.33,0.00022465,2]
[377957146,1754627443459,-460.0,0.00022465,2]
[377957147,1754627443468,-460.0,0.00022465,2]
[377957148,1754627443478,-460.0,0.00022465,2]
[377957149,1754627443491,-495.58,0.00022465,2]
[377957150,1754627443501,-460.0,0.00022465,2]
[377957151,1754627443510,-460.0,0.00022465,2]
[377957152,1754627443519,-460.0,0.00022465,2]
[377957153,1754627443529,-804.32,0.00022465,2]
[377957154,1754627443538,-460.0,0.00022465,2]
[377957155,1754627443547,-3105.5,0.00022465,2]
[377957156,1754627443558,-460.0,0.00022465,2]
[377957157,1754627443567,-702.19,0.00022465,2]
[377957158,1754627443577,-460.0,0.00022465,2]
[377957159,1754627443586,-460.0,0.00022465,2]
[377957160,1754627443596,-663.57,0.00022465,2]
[377957161,1754627443606,-460.0,0.00022465,2]
[377957162,1754627443615,-460.0,0.00022465,2]
[377957163,1754627443624,-460.0,0.00022465,2]
[377957164,1754627443635,-460.0,0.00022465,2]
[377957165,1754627443645,-958.85,0.00022465,2]
[377957166,1754627443654,-469.66980477,0.00022465,2]
[377957167,1754627443664,-1124.98,0.00022465,2]
[377957168,1754627443673,-460.0,0.00022465,2]
[377957169,1754627443682,-460.0,0.00022465,2]
[377957170,1754627443692,-460.0,0.00022465,2]
[377957171,1754627443701,-460.0,0.00022465,2]
[377957172,1754627443711,-460.0,0.00022465,2]
[377957173,1754627443719,-460.0,0.00022465,2]
[377957174,1754627443729,-460.0,0.00022465,2]
[377957175,1754627443738,-460.0,0.00022465,2]
[377957176,1754627443747,-517.08,0.00022465,2]
[377957177,1754627443756,-460.0,0.00022465,2]
[377957178,1754627443766,-2828.36,0.00022465,2]
[377957179,1754627443776,-1139.65,0.00022465,2]
[377957180,1754627443785,-460.0,0.00022465,2]
[377957181,1754627443794,-460.0,0.00022465,2]
[377957182,1754627443803,-460.0,0.00022465,2]
[377957183,1754627443812,-460.0,0.00022465,2]
[377957184,1754627443822,-952.22,0.00022465,2]
[377957185,1754627443831,-460.0,0.00022465,2]
[377957186,1754627443840,-631.61321695,0.0002252,2]
[377957188,1754627443850,-1138.7745398,0.0002252,2]
[377957190,1754627443859,-1138.7745398,0.0002252,2]
[377957191,1754627443868,-1138.7745398,0.0002252,2]
[377957193,1754627443878,-1138.7745398,0.0002252,2]
[377957195,1754627443889,-1138.7745398,0.0002252,2]
[377957196,1754627443898,-1138.7745398,0.0002252,2]
[377957197,1754627443907,-1138.7745398,0.0002252,2]
[377957198,1754627443917,-1138.7745398,0.0002252,2]
[377957199,1754627443926,-1138.7745398,0.0002252,2]
[377957201,1754627443935,-1138.7745398,0.0002252,2]
[377957203,1754627443944,-1138.7745398,0.0002252,2]
[377957204,1754627443953,-1138.7745398,0.0002252,2]
[377957205,1754627443963,-1138.7745398,0.0002252,2]
[377957206,1754627443972,-1138.7745398,0.0002252,2]
[377957208,1754627443981,-1000.0,0.00022521,2]
[377957209,1754627443989,-453.69409783,0.00022521,2]
[377957210,1754627443998,-509.1208536,0.00022521,2]
[377957211,1754627444007,-1000.0,0.00022521,2]
[377957212,1754627444017,-1000.0,0.00022521,2]
[377957213,1754627444027,-1010.05143369,0.00022521,2]
[377957214,1754627444036,-1000.0,0.00022521,2]
[377957215,1754627444046,-502.62412246,0.00022521,2]
[377957216,1754627444055,-505.42808329,0.00022521,2]
[377957217,1754627444064,-363.22229154,0.00022521,2]
[377957218,1754627444074,-1000.0,0.00022521,2]
[377957219,1754627444084,-501.37647325,0.00022521,2]
[377957220,1754627444093,-502.91019105,0.00022521,2]
[377957221,1754627444103,-500.0,0.00022598,2]
[377957222,1754627444112,-500.0,0.00022598,2]
[377957223,1754627444121,-250.39897443,0.000226,2]
[377957224,1754627444131,-500.0,0.00022602,2]
[377957225,1754627444140,-500.0,0.00022602,2]
[377957226,1754627444150,-503.13122185,0.00022602,2]
[377957227,1754627444159,-500.94182356,0.00022602,2]
[377957228,1754627444169,-500.90240663,0.00022602,2]
[377957229,1754627444178,-505.06448367,0.00022602,2]
[377957230,1754627444187,-500.0,0.00022602,2]
[377957231,1754627444197,-500.74902761,0.00022602,2]
[377957232,1754627444207,-500.0,0.00022602,2]
[377957233,1754627444216,-502.4297725,0.00022603,2]
[377957234,1754627444225,-500.0,0.00022603,2]
[377957235,1754627444235,-513.54340577,0.00022603,2]
[377957236,1754627444245,-150.16,0.00022633,2]
[377957237,1754627444254,-500.0,0.00022654,2]
[377957238,1754627444263,-500.77657956,0.00022654,2]
[377957239,1754627444272,-1098.08418753,0.000227,2]
[377957240,1754627444281,-500.0,0.00022717,2]
[377957241,1754627444291,-460.0,0.00022739,2]
[377957242,1754627444300,-460.0,0.00022739,2]
[377957243,1754627444310,-460.0,0.00022739,2]
[377957244,1754627444319,-460.0,0.00022739,2]
[377957245,1754627444328,-677.28,0.00022739,2]
[377957246,1754627444337,-460.0,0.00022739,2]
[377957247,1754627444346,-460.0,0.00022739,2]
[377957248,1754627444355,-460.0,0.00022739,2]
[377957249,1754627444364,-460.0,0.00022739,2]
[377957250,1754627444373,-497.74,0.00022739,2]
[377957251,1754627444387,-460.0,0.00022739,2]
[377957252,1754627444396,-460.0,0.00022739,2]
[377957253,1754627444405,-335.16301281,0.00022739,2]
[377957254,1754627444414,-460.0,0.00022739,2]
[377957255,1754627444423,-1511.4,0.00022739,2]
[377957256,1754627444432,-2390.55,0.00022739,2]
[377957257,1754627444441,-460.0,0.00022739,2]
[377957258,1754627444450,-460.0,0.00022739,2]
[377957259,1754627444460,-460.0,0.00022739,2]
[377957260,1754627444469,-174.13095975,0.00022739,2]
[377957261,1754627444479,-460.0,0.00022739,2]
[377957262,1754627444492,-1277.7,0.00022739,2]
[377957266,1754627444606,-460.0,0.00022739,2]
[377957267,1754627444633,-460.0,0.00022739,2]
[377957268,1754627444643,-460.0,0.00022739,2]
[377957269,1754627444653,-460.0,0.00022739,2]
[377957270,1754627444662,-460.0,0.00022739,2]
[377957271,1754627444671,-460.0,0.00022739,2]
[377957272,1754627444680,-471.63,0.00022739,2]
[377957273,1754627444691,-556.13,0.00022739,2]
[377957274,1754627444701,-460.0,0.00022739,2]
[377957275,1754627444711,-949.33,0.00022739,2]
[377957276,1754627444720,-460.0,0.00022739,2]
[377957277,1754627444729,-521.94,0.00022739,2]
[377957278,1754627444738,-460.0,0.00022739,2]
[377957279,1754627444747,-886.53,0.00022739,2]
[377957280,1754627444756,-2431.97,0.00022739,2]
[377957281,1754627444766,-1195.68,0.00022739,2]
[377957282,1754627444775,-460.0,0.00022739,2]
[377957283,1754627444784,-291.41149715,0.00022739,2]
[377957284,1754627444794,-502.51,0.00022739,2]
[377957285,1754627444803,-1565.58,0.00022739,2]
[377957286,1754627444812,-460.0,0.00022739,2]
[377957287,1754627444821,-460.0,0.00022739,2]
[377957288,1754627444830,-460.0,0.00022739,2]
[377957289,1754627444839,-460.0,0.00022739,2]
[377957290,1754627444848,-460.0,0.00022739,2]
[377957291,1754627444857,-1827.33,0.00022739,2]
[377957292,1754627444867,-460.0,0.00022739,2]
[377957293,1754627444878,-460.0,0.00022739,2]
[377957294,1754627444888,-460.0,0.00022739,2]
[377957295,1754627444897,-495.58,0.00022739,2]
[377957296,1754627444906,-460.0,0.00022739,2]
[377957297,1754627444915,-460.0,0.00022739,2]
[377957298,1754627444925,-460.0,0.00022739,2]
[377957299,1754627444934,-804.32,0.00022739,2]
[377957300,1754627444943,-460.0,0.00022739,2]
[377957301,1754627444952,-3105.5,0.00022739,2]
[377957302,1754627444962,-460.0,0.00022739,2]
[377957303,1754627444971,-460.0,0.00022739,2]
[377957304,1754627444980,-702.19,0.00022739,2]
[377957305,1754627444989,-663.57,0.00022739,2]
[377957306,1754627444998,-460.0,0.00022739,2]
[377957307,1754627445008,-460.0,0.00022739,2]
[377957308,1754627445018,-460.0,0.00022739,2]
[377957309,1754627445027,-460.0,0.00022739,2]
[377957310,1754627445037,-958.85,0.00022739,2]
[377957311,1754627445046,-460.0,0.00022739,2]
[377957312,1754627445055,-1124.98,0.00022739,2]
[377957313,1754627445066,-460.0,0.00022739,2]
[377957314,1754627445075,-460.0,0.00022739,2]
[377957315,1754627445084,-255.56,0.00022739,2]
[377957316,1754627445095,-460.0,0.00022739,2]
[377957317,1754627445104,-460.0,0.00022739,2]
[377957318,1754627445113,-460.0,0.00022739,2]
[377957319,1754627445124,-460.0,0.00022739,2]
[377957320,1754627445135,-517.08,0.00022739,2]
[377957321,1754627445144,-460.0,0.00022739,2]
[377957322,1754627445154,-2828.36,0.00022739,2]
[377957323,1754627445163,-1139.65,0.00022739,2]
[377957324,1754627445172,-460.0,0.00022739,2]
[377957325,1754627445182,-460.0,0.00022739,2]
[377957326,1754627445191,-460.0,0.00022739,2]
[377957327,1754627445201,-460.0,0.00022739,2]
[377957328,1754627445210,-952.22,0.00022739,2]
[377957329,1754627445220,-460.0,0.00022739,2]
[377957330,1754627445229,-151.0,0.00022814,2]
[377957331,1754627445239,-151.0,0.00022814,2]
[377957332,1754627445248,-151.0,0.00022814,2]
[377957333,1754627445257,-500.0,0.00022814,2]
[377957334,1754627445266,-151.0,0.00022814,2]
[377957335,1754627445275,-500.0,0.00022814,2]
[377957336,1754627445285,-151.0,0.00022814,2]
[377957337,1754627445294,-500.0,0.00022814,2]
[377957338,1754627445304,-151.0,0.00022814,2]
[377957339,1754627445313,-500.0,0.00022814,2]
[377957340,1754627445322,-151.0,0.00022814,2]
[377957341,1754627445331,-500.0,0.00022814,2]
[377957342,1754627445340,-151.0,0.00022814,2]
[377957343,1754627445349,-151.0,0.00022814,2]
[377957344,1754627445358,-500.0,0.00022814,2]
[377957345,1754627445367,-151.0,0.00022814,2]
[377957346,1754627445376,-151.0,0.00022814,2]
[377957347,1754627445386,-500.0,0.00022814,2]
[377957348,1754627445395,-151.0,0.00022814,2]
[377957349,1754627445404,-151.0,0.00022814,2]
[377957350,1754627445413,-151.0,0.00022814,2]
[377957351,1754627445423,-500.0,0.00022814,2]
[377957352,1754627445432,-151.0,0.00022814,2]
[377957353,1754627445441,-151.0,0.00022814,2]
[377957354,1754627445451,-151.0,0.00022814,2]
[377957355,1754627445460,-500.0,0.00022814,2]
[377957356,1754627445469,-500.0,0.00022814,2]
[377957357,1754627445479,-500.0,0.00022814,2]
[377957358,1754627445495,-151.0,0.00022814,2]
[377957359,1754627445504,-151.0,0.00022814,2]
[377957360,1754627445513,-151.0,0.00022814,2]
[377957361,1754627445522,-250.0,0.00022814,2]
[377957362,1754627445533,-151.0,0.00022814,2]
[377957363,1754627445542,-250.0,0.00022814,2]
[377957364,1754627445552,-151.0,0.00022814,2]
[377957365,1754627445562,-250.0,0.00022814,2]
[377957366,1754627445571,-250.0,0.00022814,2]
[377957367,1754627445581,-151.0,0.00022814,2]
[377957368,1754627445592,-250.0,0.00022814,2]
[377957369,1754627445601,-151.0,0.00022814,2]
[377957370,1754627445611,-250.0,0.00022814,2]
[377957371,1754627445620,-151.0,0.00022814,2]
[377957372,1754627445629,-250.0,0.00022814,2]
[377957373,1754627445639,-151.0,0.00022814,2]
[377957374,1754627445648,-151.0,0.00022814,2]
[377957375,1754627445659,-501.57902623,0.00022873,2]
[377957376,1754627445668,-553.38782005,0.00022873,2]
[377957377,1754627445677,-501.6038923,0.00022873,2]
[377957378,1754627445687,-500.0,0.00022873,2]
[377957379,1754627445696,-500.82577844,0.00022873,2]
[377957380,1754627445706,-500.0,0.00022873,2]
[377957381,1754627445717,-500.0,0.00022873,2]
[377957382,1754627445727,-500.0,0.00022873,2]
[377957383,1754627445738,-500.0,0.00022873,2]
[377957384,1754627445750,-500.0,0.00022873,2]
[377957385,1754627445760,-500.0,0.00022873,2]
[377957386,1754627445769,-500.0,0.00022873,2]
[377957387,1754627445779,-500.0,0.00022873,2]
[377957388,1754627445789,-500.0,0.00022873,2]
[377957389,1754627445799,-500.0,0.00022873,2]
[377957390,1754627445808,-500.0,0.00022873,2]
[377957391,1754627445818,-504.67373538,0.00022873,2]
[377957392,1754627445830,-500.0,0.00022873,2]
[377957393,1754627445840,-500.0,0.00022873,2]
[377957394,1754627445849,-500.0,0.00022873,2]
[377957395,1754627445858,-500.0,0.00022873,2]
[377957396,1754627445867,-500.0,0.00022873,2]
[377957397,1754627445876,-500.0,0.00022873,2]
[377957398,1754627445885,-500.0,0.00022873,2]
[377957399,1754627445894,-500.0,0.00022873,2]
[377957400,1754627445904,-200.0,0.00022896,15]
[377957401,1754627445914,-300.0,0.00022896,15]
[377957402,1754627445924,-240270.9580608,0.000229,7]
[377957404,1754627446088,-63331.9133015,0.000229,7]
[377957405,1754627446097,-160.0,0.000229,7]
[377957406,1754627446107,-461.45099301,0.000229,7]
[377957407,1754627446116,-12663.41139009,0.000229,7]
[377957408,1754627446126,-160.0,0.00022918,2]
[377957409,1754627446137,-461.45099301,0.00022919,2]
[377957410,1754627446146,-12663.41139009,0.00022919,2]
[377957411,1754627446155,-312.16666667,0.00022919,2]
[377957412,1754627446164,-216.5651299,0.00022919,2]
[377957413,1754627446173,-231.87430077,0.00022919,2]
[377957414,1754627446183,-160.0,0.00022919,2]
[377957415,1754627446193,-527.68033864,0.00022919,2]
[377957416,1754627446202,-215.36146706,0.00022919,2]
[377957417,1754627446212,-842.78739015,0.00022919,2]
[377957418,1754627446221,-160.0,0.00022919,2]
[377957419,1754627446230,-160.0,0.00022921,2]
[377957420,1754627446239,-160.0,0.00022921,2]
[377957421,1754627446249,-160.0,0.00022921,2]
[377957422,1754627446259,-160.0,0.00022921,2]
[377957423,1754627446269,-500.0,0.00022958,2]
[377957424,1754627446280,-500.0,0.00022958,2]
[377957425,1754627446289,-500.0,0.00022958,2]
[377957426,1754627446298,-502.37381793,0.00022958,2]
[377957427,1754627446307,-500.0,0.00022958,2]
[377957428,1754627446317,-500.0,0.00022958,2]
[377957429,1754627446327,-501.13655458,0.00022958,2]
[377957430,1754627446337,-501.60426604,0.00022958,2]
[377957431,1754627446346,-500.75183881,0.00022958,2]
[377957432,1754627446355,-500.0,0.00022958,2]
[377957433,1754627446365,-193.86855023,0.00023,2]
[377957434,1754627446374,-1345.21929793,0.00023,2]
[377957435,1754627446384,-1339.95733894,0.00023,2]
[377957436,1754627446393,-160.0,0.00023,2]
[377957437,1754627446403,-160.0,0.00023003,2]
[377957438,1754627446412,-155.53557546,0.00023008,2]
[377957439,1754627446422,-460.0,0.00023013,2]
[377957440,1754627446431,-460.0,0.00023013,2]
[377957441,1754627446440,-460.0,0.00023013,2]
[377957442,1754627446450,-677.28,0.00023013,2]
[377957443,1754627446459,-554.28360187,0.00023013,2]
[377957444,1754627446468,-460.0,0.00023013,2]
[377957445,1754627446478,-460.0,0.00023013,2]
[377957446,1754627446490,-460.0,0.00023013,2]
[377957447,1754627446501,-497.74,0.00023013,2]
[377957448,1754627446510,-460.0,0.00023013,2]
[377957449,1754627446519,-460.0,0.00023013,2]
[377957450,1754627446529,-460.0,0.00023013,2]
[377957451,1754627446539,-1511.4,0.00023013,2]
[377957452,1754627446548,-2390.55,0.00023013,2]
[377957453,1754627446560,-460.0,0.00023013,2]
[377957454,1754627446570,-271.67873486,0.00023013,2]
[377957455,1754627446579,-460.0,0.00023013,2]
[377957456,1754627446589,-460.0,0.00023013,2]
[377957457,1754627446599,-1277.7,0.00023013,2]
[377957458,1754627446610,-460.0,0.00023013,2]
[377957459,1754627446619,-199.75199465,0.00023013,2]
[377957460,1754627446628,-460.0,0.00023013,2]
[377957461,1754627446641,-460.0,0.00023013,2]
[377957462,1754627446650,-460.0,0.00023013,2]
[377957463,1754627446659,-476.60141921,0.00023013,2]
[377957464,1754627446669,-471.63,0.00023013,2]
[377957465,1754627446679,-556.13,0.00023013,2]
[377957466,1754627446688,-460.0,0.00023013,2]
[377957467,1754627446698,-949.33,0.00023013,2]
[377957468,1754627446707,-521.94,0.00023013,2]
[377957470,1754627446717,-460.0,0.00023013,2]
[377957471,1754627446726,-886.53,0.00023013,2]
[377957472,1754627446735,-2431.97,0.00023013,2]
[377957473,1754627446744,-1195.68,0.00023013,2]
[377957474,1754627446753,-412.53,0.00023013,2]
[377957475,1754627446763,-502.51,0.00023013,2]
[377957476,1754627446772,-1565.58,0.00023013,2]
[377957477,1754627446782,-509.51,0.00023013,2]
[377957478,1754627446791,-460.0,0.00023013,2]
[377957479,1754627446800,-460.0,0.00023013,2]
[377957480,1754627446809,-460.0,0.00023013,2]
[377957481,1754627446818,-460.0,0.00023013,2]
[377957482,1754627446828,-1827.33,0.00023013,2]
[377957483,1754627446837,-460.0,0.00023013,2]
[377957484,1754627446846,-460.0,0.00023013,2]
[377957485,1754627446855,-495.58,0.00023013,2]
[377957486,1754627446865,-460.0,0.00023013,2]
[377957487,1754627446874,-460.0,0.00023013,2]
[377957488,1754627446883,-312.58425432,0.00023013,2]
[377957489,1754627446892,-804.32,0.00023013,2]
[377957490,1754627446902,-460.0,0.00023013,2]
[377957491,1754627446911,-3105.5,0.00023013,2]
[377957492,1754627446921,-460.0,0.00023013,2]
[377957493,1754627446931,-460.0,0.00023013,2]
[377957494,1754627446940,-702.19,0.00023013,2]
[377957495,1754627446949,-663.57,0.00023013,2]
[377957496,1754627446958,-247.53325902,0.00023013,2]
[377957497,1754627446967,-460.0,0.00023013,2]
[377957498,1754627446977,-399.67858357,0.00023013,2]
[377957499,1754627446986,-537.2454953,0.00023013,2]
[377957500,1754627446996,-958.85,0.00023013,2]
[377957501,1754627447006,-460.0,0.00023013,2]
[377957502,1754627447015,-1124.98,0.00023013,2]
[377957503,1754627447024,-460.0,0.00023013,2]
[377957504,1754627447034,-460.0,0.00023013,2]
[377957505,1754627447043,-460.0,0.00023013,2]
[377957506,1754627447053,-460.0,0.00023013,2]
[377957507,1754627447062,-460.0,0.00023013,2]
[377957508,1754627447071,-460.0,0.00023013,2]
[377957509,1754627447080,-517.08,0.00023013,2]
[377957510,1754627447090,-424.48,0.00023013,2]
[377957511,1754627447099,-2828.36,0.00023013,2]
[377957512,1754627447108,-1139.65,0.00023013,2]
[377957513,1754627447118,-530.65,0.00023013,2]
[377957514,1754627447128,-460.0,0.00023013,2]
[377957515,1754627447138,-460.0,0.00023013,2]
[377957516,1754627447147,-952.22,0.00023013,2]
[377957517,1754627447156,-460.0,0.00023013,2]
[377957518,1754627447165,-713.68656915,0.00023068,2]
[377957519,1754627447175,-1500.0,0.00023068,2]
[377957520,1754627447184,-1011.77739619,0.00023068,2]
[377957521,1754627447194,-1500.0,0.00023068,2]
[377957522,1754627447204,-1500.0,0.00023068,2]
[377957523,1754627447214,-280.65641991,0.00023146,2]
[377957524,1754627447223,-503.23798076,0.00023146,2]
[377957525,1754627447232,-501.45717092,0.0002315,2]
[377957526,1754627447241,-500.0,0.00023172,2]
[377957527,1754627447250,-500.0,0.00023172,2]
[377957528,1754627447259,-502.41951852,0.00023172,2]
[377957529,1754627447269,-1000.0,0.00023202,2]
[377957530,1754627447278,-1008.95318751,0.00023265,2]
[377957531,1754627447288,-409.7,0.00023277,3]
[377957532,1754627447298,-460.0,0.00023287,2]
[377957533,1754627447307,-460.0,0.00023287,2]
[377957534,1754627447316,-460.0,0.00023287,2]
[377957535,1754627447447,-677.28,0.00023287,2]
[377957536,1754627447456,-460.0,0.00023287,2]
[377957537,1754627447465,-460.0,0.00023287,2]
[377957538,1754627447474,-460.0,0.00023287,2]
[377957539,1754627447484,-497.74,0.00023287,2]
[377957540,1754627447496,-460.0,0.00023287,2]
[377957541,1754627447505,-460.0,0.00023287,2]
[377957542,1754627447514,-460.0,0.00023287,2]
[377957543,1754627447524,-1511.4,0.00023287,2]
[377957544,1754627447534,-2390.55,0.00023287,2]
[377957545,1754627447543,-460.0,0.00023287,2]
[377957546,1754627447552,-524.33,0.00023287,2]
[377957547,1754627447562,-460.0,0.00023287,2]
[377957548,1754627447572,-1277.7,0.00023287,2]
[377957549,1754627447581,-460.0,0.00023287,2]
[377957550,1754627447591,-460.0,0.00023287,2]
[377957551,1754627447600,-460.0,0.00023287,2]
[377957552,1754627447609,-471.63,0.00023287,2]
[377957553,1754627447619,-556.13,0.00023287,2]
[377957554,1754627447628,-449.33426372,0.00023287,2]
[377957555,1754627447639,-949.33,0.00023287,2]
[377957556,1754627447648,-521.94,0.00023287,2]
[377957557,1754627447657,-439.86362386,0.00023287,2]
[377957558,1754627447667,-886.53,0.00023287,2]
[377957559,1754627447676,-2431.97,0.00023287,2]
[377957560,1754627447685,-1195.68,0.00023287,2]
[377957561,1754627447695,-502.51,0.00023287,2]
[377957562,1754627447704,-1565.58,0.00023287,2]
[377957563,1754627447713,-460.0,0.00023287,2]
[377957564,1754627447722,-460.0,0.00023287,2]
[377957565,1754627447731,-460.0,0.00023287,2]
[377957566,1754627447740,-460.0,0.00023287,2]
[377957567,1754627447750,-1827.33,0.00023287,2]
[377957568,1754627447759,-460.0,0.00023287,2]
[377957569,1754627447768,-460.0,0.00023287,2]
[377957570,1754627447777,-495.58,0.00023287,2]
[377957571,1754627447786,-460.0,0.00023287,2]
[377957572,1754627447795,-460.0,0.00023287,2]
[377957573,1754627447805,-804.32,0.00023287,2]
[377957574,1754627447814,-460.0,0.00023287,2]
[377957575,1754627447823,-3105.5,0.00023287,2]
[377957576,1754627447833,-460.0,0.00023287,2]
[377957577,1754627447842,-460.0,0.00023287,2]
[377957578,1754627447851,-702.19,0.00023287,2]
[377957579,1754627447861,-663.57,0.00023287,2]
[377957580,1754627447870,-460.0,0.00023287,2]
[377957581,1754627447879,-958.85,0.00023287,2]
[377957582,1754627447890,-460.0,0.00023287,2]
[377957583,1754627447899,-1124.98,0.00023287,2]
[377957584,1754627447908,-460.0,0.00023287,2]
[377957585,1754627447918,-460.0,0.00023287,2]
[377957586,1754627447927,-460.0,0.00023287,2]
[377957587,1754627447936,-460.0,0.00023287,2]
[377957588,1754627447945,-460.0,0.00023287,2]
[377957589,1754627447954,-517.08,0.00023287,2]
[377957590,1754627447963,-2828.36,0.00023287,2]
[377957591,1754627447973,-1139.65,0.00023287,2]
[377957592,1754627447982,-460.0,0.00023287,2]
[377957593,1754627447991,-952.22,0.00023287,2]
[377957594,1754627448000,-460.0,0.00023287,2]
[377957595,1754627448010,-288.41,0.000233,2]
[377957596,1754627448020,-501.18156412,0.00023421,2]
[377957597,1754627448029,-1000.0,0.00023421,2]
[377957598,1754627448039,-1000.0,0.00023421,2]
[377957599,1754627448049,-1000.0,0.00023421,2]
[377957600,1754627448058,-657.34979334,0.00023421,2]
[377957601,1754627448068,-1000.0,0.00023421,2]
[377957602,1754627448079,-1000.0,0.00023421,2]
[377957603,1754627448088,-1000.0,0.00023421,2]
[377957604,1754627448098,-501.70765911,0.00023421,2]
[377957605,1754627448108,-1000.0,0.00023421,2]
[377957606,1754627448124,-1015.00907503,0.00023421,2]
[377957607,1754627448140,-1000.0,0.00023421,2]
[377957608,1754627448150,-1000.0,0.00023421,2]
[377957609,1754627448159,-1011.55871125,0.00023421,2]
[377957610,1754627448170,-1000.0,0.00023421,2]
[377957611,1754627448179,-1000.0,0.00023421,2]
[377957612,1754627448188,-1006.52330765,0.00023421,2]
[377957613,1754627448198,-1000.0,0.00023421,2]
[377957614,1754627448207,-1041.56782758,0.00023421,2]